[Event "XTX Markets London Masters 2024"]
[Site "London"]
[Date "2024.11.30"]
[Round "2.29"]
[White "Zhao, George"]
[Black "Subramanian, Anusha"]
[Result "1-0"]
[ECO "E05"]
[WhiteElo "2233"]
[BlackElo "2131"]
[Annotator "RC"]
[PlyCount "83"]
[EventDate "2024.11.28"]
[EventType "swiss"]
[EventCountry "ENG"]
[SourceTitle "playchess.com"]
[Source "ChessBase"]
[SourceQuality "1"]
[TimeControl "40/5400+30:1800+30"]

1. d4 {[%emt 0:00:05]} Nf6 {[%emt 0:00:05]} 2. c4 {[%emt 0:00:10]} e6 {[%emt 0:00:05]} 3. g3 {[%emt 0:00:47]} d5 {[%emt 0:00:05]} 4. Nf3 {[%emt 0:00:09]} Be7 {[%emt 0:00:05]} 5. Bg2 {[%emt 0:00:07]} O-O {[%emt 0:00:05]} 6. O-O {[%emt 0:00:06]} dxc4 {[%emt 0:00:02]} 7. Qc2 {[%emt 0:00:55]} a6 {[%emt 0:00:05]} 8. a4 {[%emt 0:00:31]} h6 {[%emt 0:00:06]} 9. Qxc4 {[%emt 0:05:06]} b5 {[%emt 0:04:21]} 10. Qd3 {[%emt 0:03:20]} b4 {[%emt 0:10:48]} 11. a5 {[%emt 0:03:02]} Bb7 {[%emt 0:01:22]} 12. Nbd2 {[%emt 0:03:06]} Nbd7 {[%emt 0:04:11]} 13. Nc4 {[%emt 0:03:18]} c5 {[%emt 0:04:23]} 14. Bf4 {[%emt 0:09:40]} cxd4 {[%emt 0:12:58]} 15. Qxd4 {[%emt 0:01:27]} Bc5 {[%emt 0:01:00]} 16. Qd3 {[%emt 0:02:36]} Be4 {[%emt 0:04:26]} 17. Qd2 {[%emt 0:07:07]} Bd5 {[%emt 0:04:28]} 18. Ne3 {[%emt 0:02:11]} Ne4 {[%emt 0:02:13]} 19. Qd3 {[%emt 0:01:24]} Bxe3 {[%emt 0:07:37]} 20. Qxe3 {[%emt 0:02:53]} Qf6 {[%emt 0:06:27]} 21. Nd2 {[%emt 0:04:25]} Nec5 {[%emt 0:11:04]} 22. Rac1 {[%emt 0:06:07]} Rfc8 {[%emt 0:03:12]} 23. Nc4 {[%emt 0:08:03]} Na4 {[%emt 0:10:18]} 24. Ne5 {[%emt 0:07:20]} Ndc5 {[%emt 0:03:12]} 25. Bxd5 {[%emt 0:09:02]} exd5 {[%emt 0:00:14]} 26. Qd4 {[%emt 0:04:42]} g5 {[%emt 0:05:00]} 27. Be3 {[%emt 0:00:46]} Ne6 {[%emt 0:01:47]} 28. Qxd5 {[%emt 0:02:50]} Rd8 {[%emt 0:01:10]} 29. Qe4 {[%emt 0:03:40]} Re8 {[%emt 0:01:31]} 30. Ng4 {[%emt 0:01:37]} Qg7 {[%emt 0:01:01]} 31. Qxb4 {[%emt 0:03:19]} Nxb2 {[%emt 0:01:49]} 32. Rc6 {[%emt 0:01:30]} Rab8 {[%emt 0:00:35]} 33. Rb6 {[%emt 0:01:28]} Rxb6 {[%emt 0:00:08]} 34. axb6 {[%emt 0:00:24]} f5 {[%emt 0:00:43]} 35. b7 {[%emt 0:00:41]} Rb8 {[%emt 0:00:39]} 36. Qd6 {[%emt 0:00:30]} Nc7 {[%emt 0:00:39]} 37. Bd4 {[%emt 0:00:25]} Nc4 {[%emt 0:00:31]} 38. Qc5 {[%emt 0:01:42]} Ne6 {[%emt 0:00:19]} 39. Qc8+ {[%emt 0:00:50]} Qf8 {[%emt 0:00:14]} 40. Qxe6+ {[%emt 0:00:23]} Kh7 {[%emt 0:00:15]} 41. Nf6+ {[%emt 0:30:16]} Kg6 {[%emt 0:30:19]} 42. Nd7+ {[%emt 0:00:18]} 1-0

[Event "XTX Markets London Masters 2024"]
[Site "London"]
[Date "2024.11.30"]
[Round "2.30"]
[White "Venkataramanan, T.S."]
[Black "Kovalskyi, Roman"]
[Result "0-1"]
[ECO "B22"]
[WhiteElo "2227"]
[BlackElo "2124"]
[Annotator "RC"]
[PlyCount "136"]
[EventDate "2024.11.28"]
[EventType "swiss"]
[EventCountry "ENG"]
[SourceTitle "playchess.com"]
[Source "ChessBase"]
[SourceQuality "1"]
[TimeControl "40/5400+30:1800+30"]

1. e4 {[%emt 0:00:29]} c5 {[%emt 0:00:26]} 2. c3 {[%emt 0:00:12]} d5 {[%emt 0:00:06]} 3. exd5 {[%emt 0:00:06]} Qxd5 {[%emt 0:00:05]} 4. d4 {[%emt 0:00:10]} Nf6 {[%emt 0:00:05]} 5. Nf3 {[%emt 0:00:32]} e6 {[%emt 0:00:06]} 6. Be3 {[%emt 0:00:41]} cxd4 {[%emt 0:00:10]} 7. cxd4 {[%emt 0:00:12]} Bb4+ {[%emt 0:00:07]} 8. Nc3 {[%emt 0:00:13]} Qa5 {[%emt 0:00:07]} 9. Qb3 {[%emt 0:06:51]} O-O {[%emt 0:00:14]} 10. Bd3 {[%emt 0:04:09]} b6 {[%emt 0:00:35]} 11. Ne5 {[%emt 0:04:50]} Ba6 {[%emt 0:00:48]} 12. Nc4 {[%emt 0:02:15]} Bxc3+ {[%emt 0:04:42]} 13. bxc3 {[%emt 0:01:23]} Qd5 {[%emt 0:00:08]} 14. Kd2 {[%emt 0:29:49]} Rc8 {[%emt 0:06:23]} 15. Ne5 {[%emt 0:02:25]} Bb5 {[%emt 1:23:58]} 16. Qxd5 Bxd3 {[%emt 0:00:00]} 17. Nxd3 Nxd5 {[%emt 0:00:00]} 18. Rhd1 Nxc3 19. Rdc1 {[%emt 0:07:35]} Ne4+ {[%emt 0:00:00]} 20. Ke2 {[%emt 0:00:24]} Nd7 {[%emt 0:00:00]} 21. Nb4 {[%emt 0:01:24]} Ndf6 {[%emt 0:00:00]} 22. Kf3 {[%emt 0:03:46]} Nc3 {[%emt 0:00:00]} 23. Rc2 {[%emt 0:01:17]} Nfd5 {[%emt 0:00:00]} 24. Nd3 {[%emt 0:00:41]} Nb5 {[%emt 0:00:00]} 25. Rac1 {[%emt 0:01:40]} Rxc2 {[%emt 0:00:00]} 26. Rxc2 {[%emt 0:00:10]} f6 {[%emt 0:00:00]} 27. Rc6 {[%emt 0:01:57]} Kf7 {[%emt 0:00:00]} 28. a4 {[%emt 0:00:24]} Nbc3 {[%emt 0:00:00]} 29. Nb2 {[%emt 0:01:10]} b5 {[%emt 0:00:00]} 30. a5 {[%emt 0:01:40]} b4 {[%emt 0:00:00]} 31. Bd2 {[%emt 0:01:31]} Nb5 {[%emt 0:00:00]} 32. Be3 {[%emt 0:02:16]} Ke7 {[%emt 0:00:00]} 33. Rc5 {[%emt 0:01:39]} Nd6 {[%emt 0:00:00]} 34. Bd2 {[%emt 0:03:06]} g5 {[%emt 0:00:00]} 35. Ke2 {[%emt 0:02:06]} Rb8 {[%emt 0:00:00]} 36. Kd3 {[%emt 0:00:53]} Nb7 {[%emt 0:00:00]} 37. Rc6 {[%emt 0:16:55]} Kd7 {[%emt 0:00:00]} 38. Ra6 {[%emt 0:02:12]} Ra8 {[%emt 0:00:00]} 39. Na4 {[%emt 0:00:51]} Nc7 {[%emt 0:00:00]} 40. Rb6 {[%emt 0:00:32]} axb6 {[%emt 0:00:00]} 41. Nxb6+ {[%emt 0:30:13]} Kc6 {[%emt 0:03:20]} 42. Nxa8 {[%emt 0:00:53]} Nxa8 {[%emt 0:00:06]} 43. Bxb4 {[%emt 0:00:07]} Nc7 {[%emt 0:00:06]} 44. a6 {[%emt 0:02:09]} Nxa6 {[%emt 0:04:31]} 45. Be7 {[%emt 0:00:00]} f5 {[%emt 0:00:00]} 46. Bxg5 {[%emt 0:00:00]} Kd5 {[%emt 0:00:00]} 47. Bf6 {[%emt 0:00:00]} Nb4+ {[%emt 0:00:00]} 48. Ke3 {[%emt 0:00:00]} Nc6 {[%emt 0:00:00]} 49. Kf4 {[%emt 0:00:00]} Nd6 {[%emt 0:00:00]} 50. g4 {[%emt 0:00:00]} fxg4 {[%emt 0:00:00]} 51. Kxg4 {[%emt 0:00:00]} Nxd4 {[%emt 0:00:00]} 52. f3 {[%emt 0:00:00]} N4f5 {[%emt 0:00:00]} 53. Kg5 {[%emt 0:00:00]} Nf7+ {[%emt 0:00:00]} 54. Kf4 {[%emt 0:00:00]} N5d6 {[%emt 0:00:00]} 55. h3 {[%emt 0:00:00]} e5+ {[%emt 0:00:00]} 56. Kg4 {[%emt 0:00:00]} Ke6 {[%emt 0:00:00]} 57. Bh4 {[%emt 0:00:00]} Nf5 {[%emt 0:00:00]} 58. Be1 {[%emt 0:00:00]} Kf6 {[%emt 0:00:00]} 59. h4 {[%emt 0:00:00]} Ne3+ {[%emt 0:00:00]} 60. Kg3 {[%emt 0:00:00]} Kf5 {[%emt 0:00:00]} 61. Kf2 {[%emt 0:00:00]} Nd5 {[%emt 0:00:00]} 62. Kg3 {[%emt 0:00:00]} Nd8 {[%emt 0:00:00]} 63. Bd2 {[%emt 0:00:00]} Ne6 {[%emt 0:00:00]} 64. Bc1 {[%emt 0:00:00]} h5 {[%emt 0:00:00]} 65. Bd2 {[%emt 0:00:00]} Ndf4 {[%emt 0:00:00]} 66. Ba5 {[%emt 0:00:00]} Nd4 {[%emt 0:00:00]} 67. Bc7 {[%emt 0:00:00]} Nd3 {[%emt 0:00:00]} 68. Bd8 {[%emt 0:00:00]} Ne1 {[%emt 0:00:00]} 0-1

[Event "XTX Markets London Masters 2024"]
[Site "London"]
[Date "2024.11.30"]
[Round "2.31"]
[White "Rocco, Federico"]
[Black "Kalavannan, Koby"]
[Result "0-1"]
[ECO "B27"]
[WhiteElo "2154"]
[BlackElo "2225"]
[Annotator "RC"]
[PlyCount "80"]
[EventDate "2024.11.28"]
[EventType "swiss"]
[EventCountry "ENG"]
[SourceTitle "playchess.com"]
[Source "ChessBase"]
[SourceQuality "1"]
[TimeControl "40/5400+30:1800+30"]

1. e4 {[%emt 0:12:33]} c5 {[%emt 0:00:50]} 2. Nf3 {[%emt 0:00:07]} g6 {[%emt 0:00:13]} 3. d4 {[%emt 0:02:45]} cxd4 {[%emt 0:00:09]} 4. Qxd4 {[%emt 0:00:06]} Nf6 {[%emt 0:00:09]} 5. Nc3 {[%emt 0:00:13]} Nc6 {[%emt 0:00:19]} 6. Qa4 {[%emt 0:00:22]} d6 {[%emt 0:00:17]} 7. e5 {[%emt 0:00:25]} dxe5 {[%emt 0:00:11]} 8. Nxe5 {[%emt 0:00:10]} Qd4 {[%emt 0:14:41]} 9. Nxc6 {[%emt 0:15:12]} Qxa4 {[%emt 0:00:06]} 10. Nxa4 {[%emt 0:00:06]} bxc6 {[%emt 0:00:05]} 11. Bc4 {[%emt 0:05:46]} Bf5 {[%emt 0:02:11]} 12. Ba6 {[%emt 0:03:41]} Rb8 {[%emt 0:10:43]} 13. c3 {[%emt 0:02:18]} Nd5 {[%emt 0:00:46]} 14. O-O {[%emt 0:03:30]} Bg7 {[%emt 0:02:12]} 15. Nc5 {[%emt 0:00:10]} O-O {[%emt 0:05:26]} 16. Bb7 {[%emt 0:02:55]} Rfd8 {[%emt 0:15:12]} 17. Bxc6 {[%emt 0:01:22]} Nxc3 {[%emt 0:02:40]} 18. bxc3 {[%emt 0:02:15]} Bxc3 {[%emt 0:03:11]} 19. Be3 {[%emt 0:06:04]} Bxa1 {[%emt 0:01:48]} 20. Rxa1 {[%emt 0:00:08]} Rb1+ {[%emt 0:01:10]} 21. Rxb1 {[%emt 0:00:06]} Bxb1 {[%emt 0:00:04]} 22. h4 {[%emt 0:03:14]} Bxa2 {[%emt 0:03:07]} 23. Nb7 {[%emt 0:01:09]} Rd1+ {[%emt 0:01:33]} 24. Kh2 {[%emt 0:00:07]} Bd5 {[%emt 0:01:43]} 25. Na5 {[%emt 0:03:31]} a6 {[%emt 0:03:31]} 26. Kg3 {[%emt 0:02:19]} f6 {[%emt 0:07:59]} 27. Bd7 {[%emt 0:02:18]} Kf7 {[%emt 0:03:44]} 28. Bc8 {[%emt 0:01:00]} Ra1 {[%emt 0:01:43]} 29. Bb6 {[%emt 0:01:19]} Rb1 {[%emt 0:00:34]} 30. Be3 {[%emt 0:00:37]} Rb5 {[%emt 0:03:24]} 31. Bd2 {[%emt 0:00:21]} Rb2 {[%emt 0:00:28]} 32. Be3 {[%emt 0:00:23]} Rb8 {[%emt 0:05:30]} 33. Bg4 {[%emt 0:02:41]} Rb5 {[%emt 0:01:15]} 34. Bd2 {[%emt 0:00:39]} Rb2 {[%emt 0:01:53]} 35. Bc3 {[%emt 0:03:30]} Ra2 {[%emt 0:01:21]} 36. Bb4 {[%emt 0:00:47]} Ra4 {[%emt 0:00:32]} 37. Bd2 {[%emt 0:01:46]} Ra3+ {[%emt 0:02:12]} 38. Kh2 {[%emt 0:04:11]} Ra2 {[%emt 0:02:15]} 39. Be1 {[%emt 0:00:07]} f5 {[%emt 0:00:39]} 40. Bh3 {[%emt 0:00:19]} Re2 {[%emt 0:01:33]} 0-1

[Event "XTX Markets London Masters 2024"]
[Site "London"]
[Date "2024.11.30"]
[Round "2.32"]
[White "Li, Jack"]
[Black "Rushbrooke, Remy"]
[Result "0-1"]
[ECO "B06"]
[WhiteElo "1717"]
[BlackElo "2074"]
[Annotator "NA RC"]
[PlyCount "110"]
[EventDate "2024.11.28"]
[EventType "swiss"]
[EventCountry "ENG"]
[SourceTitle "playchess.com"]
[Source "ChessBase"]
[SourceQuality "1"]
[TimeControl "40/5400+30:1800+30"]

1. e4 {[%emt 0:00:03]} g6 {[%emt 0:00:05]} 2. d4 {[%emt 0:00:05]} Bg7 {[%emt 0:00:04]} 3. Nc3 {[%emt 0:00:07]} d6 {[%emt 0:00:08]} 4. Be3 {[%emt 0:00:06]} a6 {[%emt 0:00:09]} 5. Qd2 {[%emt 0:00:30]} b5 {[%emt 0:00:05]} 6. f3 {[%emt 0:00:11]} Bb7 {[%emt 0:00:23]} 7. h4 {[%emt 0:00:16]} h6 {[%emt 0:00:09]} 8. O-O-O {[%emt 0:00:09]} Nd7 {[%emt 0:00:04]} 9. Nh3 {[%emt 0:00:25]} Ngf6 {[%emt 0:01:57]} 10. g4 {[%emt 0:00:12]} Nb6 {[%emt 0:00:04]} 11. d5 {[%emt 0:01:03]} c5 {[%emt 0:02:33]} 12. dxc6 {[%emt 0:15:12]} Bxc6 {[%emt 0:00:09]} 13. Bd4 {[%emt 0:05:20]} Qc7 {[%emt 0:06:08]} 14. g5 {[%emt 0:10:37]} hxg5 {[%emt 0:00:05]} 15. hxg5 {[%emt 0:03:17]} Nh5 {[%emt 0:00:05]} 16. Bxg7 {[%emt 0:08:54]} Nxg7 {[%emt 0:00:05]} 17. Be2 {[%emt 0:00:32]} O-O-O {[%emt 0:01:37]} 18. Nf4 {[%emt 0:02:34]} Rxh1 {[%emt 0:00:25]} 19. Rxh1 {[%emt 0:00:06]} e5 {[%emt 0:14:00]} 20. Nfd5 {[%emt 0:06:55]} Bxd5 {[%emt 0:00:56]} 21. Nxd5 {[%emt 0:00:26]} Nxd5 {[%emt 0:03:04]} 22. Qxd5 {[%emt 0:00:16]} Qb7 {[%emt 0:06:22]} 23. Rh7 {[%emt 0:00:41]} Ne6 {[%emt 0:04:02]} 24. Qxb7+ {[%emt 0:02:32]} Kxb7 {[%emt 0:01:48]} 25. Rxf7+ {[%emt 0:00:04]} Kc6 {[%emt 0:01:06]} 26. a4 {[%emt 0:10:36]} Nxg5 {[%emt 0:03:48]} 27. Rf6 {[%emt 0:11:01]} Nh3 {[%emt 0:00:47]} 28. Bd1 {[%emt 0:01:50]} Nf4 {[%emt 0:01:23]} 29. c3 {[%emt 0:03:47]} Rh8 {[%emt 0:01:26]} 30. Rf7 {[%emt 0:04:58]} Rh2 {[%emt 0:14:50]} 31. Bc2 {[%emt 0:02:16]} Rh1+ {[%emt 0:00:50]} 32. Kd2 {[%emt 0:00:17]} Rh2+ {[%emt 0:00:03]} 33. Kc1 {[%emt 0:00:21]} Rf2 {[%emt 0:00:39]} 34. a5 {[%emt 0:01:40]} Rxf3 {[%emt 0:08:32]} 35. Ra7 {[%emt 0:00:06]} Rf1+ {[%emt 0:09:14]} 36. Kd2 {[%emt 0:00:26]} Rf2+ {[%emt 0:00:04]} 37. Kc1 {[%emt 0:00:16]} g5 {[%emt 0:04:44]} 38. Rxa6+ {[%emt 0:00:07]} Kb7 {[%emt 0:00:29]} 39. Rb6+ {[%emt 0:00:25]} Ka7 {[%emt 0:04:26]} 40. Bd1 {[%emt 0:11:10]} Nd3+ {[%emt 0:04:04]} 41. Kb1 {[%emt 0:30:09]} Rxb2+ {[%emt 0:33:43]} 42. Ka1 {[%emt 0:00:02]} Rd2 {[%emt 0:00:28]} 43. Bh5 {[%emt 0:00:00]} Nc5 {[%emt 0:00:00]} 44. Rxb5 {[%emt 0:00:00]} Nxe4 {[%emt 0:00:00]} 45. c4 {[%emt 0:00:00]} Nf6 {[%emt 0:00:00]} 46. Bg6 {[%emt 0:00:00]} g4 {[%emt 0:00:00]} 47. Rb3 {[%emt 0:00:00]} Rd4 {[%emt 0:00:00]} 48. Rc3 {[%emt 0:00:00]} Rf4 {[%emt 0:00:00]} 49. c5 {[%emt 0:00:00]} dxc5 {[%emt 0:00:00]} 50. Rxc5 {[%emt 0:00:00]} g3 {[%emt 0:00:00]} 51. Bd3 {[%emt 0:00:00]} g2 {[%emt 0:00:00]} 52. Rc7+ {[%emt 0:00:00]} Kb8 {[%emt 0:00:00]} 53. Rc1 {[%emt 0:00:00]} e4 {[%emt 0:00:00]} 54. Bb5 {[%emt 0:00:00]} Rf2 {[%emt 0:00:00]} 55. Bc6 {[%emt 0:00:00]} Rf1 {[%emt 0:00:00]} 0-1

[Event "XTX Markets London Masters 2024"]
[Site "London"]
[Date "2024.11.30"]
[Round "2.33"]
[White "Fernandez, Michael"]
[Black "Manmay Chopra"]
[Result "1-0"]
[ECO "A24"]
[WhiteElo "2138"]
[BlackElo "2217"]
[Annotator "RC"]
[PlyCount "69"]
[EventDate "2024.11.28"]
[EventType "swiss"]
[EventCountry "ENG"]
[SourceTitle "playchess.com"]
[Source "ChessBase"]
[SourceQuality "1"]
[TimeControl "40/5400+30:1800+30"]

1. c4 {[%emt 0:13:30]} Nf6 {[%emt 0:01:40]} 2. g3 {[%emt 0:00:09]} g6 {[%emt 0:00:05]} 3. Bg2 {[%emt 0:00:13]} Bg7 {[%emt 0:00:05]} 4. Nc3 {[%emt 0:00:11]} O-O {[%emt 0:00:07]} 5. e4 {[%emt 0:00:12]} d6 {[%emt 0:00:11]} 6. Nge2 {[%emt 0:00:15]} e5 {[%emt 0:00:13]} 7. O-O {[%emt 0:00:28]} Be6 {[%emt 0:01:17]} 8. d3 {[%emt 0:02:32]} Qd7 {[%emt 0:00:44]} 9. Nd5 {[%emt 0:04:51]} c6 {[%emt 0:03:03]} 10. Nxf6+ {[%emt 0:01:08]} Bxf6 {[%emt 0:00:03]} 11. Nc3 {[%emt 0:00:41]} h5 {[%emt 0:01:08]} 12. Be3 {[%emt 0:03:04]} h4 {[%emt 0:09:01]} 13. f4 {[%emt 0:01:32]} hxg3 {[%emt 0:11:43]} 14. hxg3 {[%emt 0:00:05]} Bg4 {[%emt 0:10:37]} 15. Qd2 {[%emt 0:00:50]} Bg7 {[%emt 0:03:49]} 16. d4 {[%emt 0:04:39]} Na6 {[%emt 0:02:47]} 17. dxe5 {[%emt 0:07:03]} dxe5 {[%emt 0:00:16]} 18. Qxd7 {[%emt 0:00:12]} Bxd7 {[%emt 0:00:05]} 19. f5 {[%emt 0:00:35]} Kh7 {[%emt 0:15:21]} 20. Rad1 {[%emt 0:14:07]} Rfd8 {[%emt 0:01:18]} 21. fxg6+ {[%emt 0:02:11]} fxg6 {[%emt 0:01:45]} 22. Bg5 {[%emt 0:00:47]} Nc5 {[%emt 0:04:56]} 23. Bxd8 {[%emt 0:01:06]} Rxd8 {[%emt 0:00:02]} 24. Bh3 {[%emt 0:01:24]} Bxh3 {[%emt 0:00:33]} 25. Rxd8 {[%emt 0:00:02]} Bxf1 {[%emt 0:00:01]} 26. Kxf1 {[%emt 0:00:07]} a5 {[%emt 0:01:15]} 27. Ra8 {[%emt 0:03:09]} a4 {[%emt 0:00:27]} 28. Ke2 {[%emt 0:01:55]} Bh6 {[%emt 0:02:08]} 29. Kf3 {[%emt 0:00:54]} Bc1 {[%emt 0:01:56]} 30. Nxa4 {[%emt 0:00:08]} Ne6 {[%emt 0:00:06]} 31. Kg4 {[%emt 0:03:56]} b5 {[%emt 0:02:25]} 32. cxb5 {[%emt 0:00:05]} cxb5 {[%emt 0:00:03]} 33. Rc8 {[%emt 0:00:44]} Be3 {[%emt 0:00:51]} 34. Nc3 {[%emt 0:00:19]} Nd4 {[%emt 0:00:26]} 35. Rb8 {[%emt 0:00:34]} 1-0

[Event "XTX Markets London Masters 2024"]
[Site "London"]
[Date "2024.11.30"]
[Round "2.34"]
[White "Dignam, Matthew"]
[Black "Sowray, Peter J"]
[Result "0-1"]
[ECO "B13"]
[WhiteElo "2123"]
[BlackElo "2205"]
[Annotator "RC"]
[PlyCount "118"]
[EventDate "2024.11.28"]
[EventType "swiss"]
[EventCountry "ENG"]
[SourceTitle "playchess.com"]
[Source "ChessBase"]
[SourceQuality "1"]
[TimeControl "40/5400+30:1800+30"]

1. e4 {[%emt 0:00:07]} c6 {[%emt 0:00:06]} 2. d4 {[%emt 0:00:10]} d5 {[%emt 0:00:05]} 3. exd5 {[%emt 0:00:41]} cxd5 {[%emt 0:00:07]} 4. Bd3 {[%emt 0:00:10]} Nc6 {[%emt 0:00:08]} 5. c3 {[%emt 0:00:16]} Nf6 {[%emt 0:00:07]} 6. h3 {[%emt 0:01:06]} e5 {[%emt 0:00:37]} 7. dxe5 {[%emt 0:00:27]} Nxe5 {[%emt 0:00:08]} 8. Bc2 {[%emt 0:00:36]} Bc5 {[%emt 0:05:06]} 9. Bf4 {[%emt 0:25:05]} Ng6 {[%emt 0:06:03]} 10. Qe2+ {[%emt 0:09:21]} Qe7 {[%emt 0:02:07]} 11. Bg5 {[%emt 0:04:02]} Qxe2+ {[%emt 0:08:48]} 12. Nxe2 {[%emt 0:03:17]} Ne4 {[%emt 0:00:29]} 13. Bxe4 {[%emt 0:04:54]} dxe4 {[%emt 0:00:03]} 14. Nd2 {[%emt 0:03:05]} f5 {[%emt 0:01:26]} 15. Nc4 {[%emt 0:21:40]} Be6 {[%emt 0:08:24]} 16. Ne3 {[%emt 0:00:31]} Kf7 {[%emt 0:05:25]} 17. Bf4 {[%emt 0:08:07]} Rad8 {[%emt 0:05:44]} 18. g4 {[%emt 0:01:20]} fxg4 {[%emt 0:08:07]} 19. Nxg4 {[%emt 0:01:53]} Bxg4 {[%emt 0:05:12]} 20. hxg4 {[%emt 0:00:05]} Rd3 {[%emt 0:00:39]} 21. Rh5 {[%emt 0:01:21]} Bb6 {[%emt 0:01:54]} 22. Bg3 {[%emt 0:01:42]} h6 {[%emt 0:03:07]} 23. Rf5+ {[%emt 0:00:22]} Ke6 {[%emt 0:01:55]} 24. Nf4+ {[%emt 0:01:35]} Nxf4 {[%emt 0:00:03]} 25. Rxf4 {[%emt 0:00:59]} e3 {[%emt 0:02:21]} 26. Re4+ {[%emt 0:00:28]} Kf6 {[%emt 0:03:11]} 27. fxe3 {[%emt 0:00:33]} Rxe3+ {[%emt 0:00:19]} 28. Rxe3 {[%emt 0:00:05]} Bxe3 {[%emt 0:00:04]} 29. Ke2 {[%emt 0:02:20]} Re8 {[%emt 0:00:51]} 30. Kf3 {[%emt 0:00:26]} Bc5 {[%emt 0:01:44]} 31. Re1 {[%emt 0:00:49]} Rxe1 {[%emt 0:01:06]} 32. Bxe1 {[%emt 0:00:03]} g6 {[%emt 0:00:38]} 33. b4 {[%emt 0:01:28]} Be7 {[%emt 0:01:29]} 34. c4 {[%emt 0:03:56]} Ke6 {[%emt 0:02:08]} 35. Ke4 {[%emt 0:00:12]} h5 {[%emt 0:00:45]} 36. gxh5 {[%emt 0:00:20]} gxh5 {[%emt 0:00:02]} 37. Kf4 {[%emt 0:00:26]} h4 {[%emt 0:01:49]} 38. a4 {[%emt 0:01:38]} h3 {[%emt 0:02:49]} 39. Kf3 {[%emt 0:00:39]} Bd6 {[%emt 0:01:44]} 40. c5 {[%emt 0:00:27]} Be5 {[%emt 0:01:50]} 41. b5 {[%emt 0:30:32]} Bd4 {[%emt 0:35:20]} 42. c6 {[%emt 0:03:27]} bxc6 {[%emt 0:01:54]} 43. bxc6 {[%emt 0:00:13]} Be5 {[%emt 0:00:52]} 44. Bf2 {[%emt 0:00:00]} a6 {[%emt 0:00:00]} 45. Ba7 {[%emt 0:00:00]} Kd5 {[%emt 0:00:00]} 46. Bf2 {[%emt 0:00:00]} Kxc6 {[%emt 0:00:00]} 47. Bh4 {[%emt 0:00:00]} Bc7 {[%emt 0:00:00]} 48. Be1 {[%emt 0:00:00]} Kc5 {[%emt 0:00:00]} 49. Bd2 {[%emt 0:00:00]} Kc4 {[%emt 0:00:00]} 50. Be1 {[%emt 0:00:18]} Kb3 {[%emt 0:00:00]} 51. a5 {[%emt 0:00:29]} Ka4 {[%emt 0:00:00]} 52. Bd2 {[%emt 0:00:55]} Kb5 {[%emt 0:00:00]} 53. Bc3 {[%emt 0:00:38]} Bxa5 {[%emt 0:00:00]} 54. Be5 {[%emt 0:00:26]} Kc6 {[%emt 0:00:00]} 55. Bf4 {[%emt 0:00:39]} Bb4 {[%emt 0:00:00]} 56. Bc1 {[%emt 0:01:14]} Be1 {[%emt 0:00:00]} 57. Bf4 {[%emt 0:00:54]} a5 {[%emt 0:00:00]} 58. Kg4 {[%emt 0:00:12]} a4 {[%emt 0:00:00]} 59. Kxh3 {[%emt 0:00:17]} a3 {[%emt 0:00:00]} 0-1

[Event "XTX Markets London Masters 2024"]
[Site "London"]
[Date "2024.11.30"]
[Round "2.35"]
[White "Verma, Shlok"]
[Black "Franco, Gaston"]
[Result "1-0"]
[ECO "D36"]
[WhiteElo "2191"]
[BlackElo "2070"]
[Annotator "RC"]
[PlyCount "79"]
[EventDate "2024.11.28"]
[EventType "swiss"]
[EventCountry "ENG"]
[SourceTitle "playchess.com"]
[Source "ChessBase"]
[SourceQuality "1"]
[TimeControl "40/5400+30:1800+30"]

1. d4 {[%emt 0:00:03]} d5 {[%emt 0:00:09]} 2. c4 {[%emt 0:00:05]} e6 {[%emt 0:00:07]} 3. Nc3 {[%emt 0:00:19]} Nf6 {[%emt 0:00:08]} 4. cxd5 {[%emt 0:00:05]} exd5 {[%emt 0:00:04]} 5. Bg5 {[%emt 0:00:04]} Be7 {[%emt 0:00:09]} 6. e3 {[%emt 0:00:12]} c6 {[%emt 0:00:33]} 7. Bd3 {[%emt 0:00:18]} O-O {[%emt 0:00:19]} 8. Nge2 {[%emt 0:02:11]} Nbd7 {[%emt 0:02:05]} 9. O-O {[%emt 0:02:20]} Re8 {[%emt 0:07:33]} 10. Qc2 {[%emt 0:01:46]} Nf8 {[%emt 0:00:20]} 11. f3 {[%emt 0:24:31]} g6 {[%emt 0:22:13]} 12. Bh4 {[%emt 0:07:09]} Ne6 {[%emt 0:02:39]} 13. Rad1 {[%emt 0:00:24]} Nh5 {[%emt 0:07:13]} 14. Bf2 {[%emt 0:01:24]} Bh4 {[%emt 0:00:28]} 15. g3 {[%emt 0:24:55]} Bf6 {[%emt 0:01:36]} 16. g4 {[%emt 0:01:39]} Nhg7 {[%emt 0:00:11]} 17. Kg2 {[%emt 0:01:42]} Bh4 {[%emt 0:08:59]} 18. Ng3 {[%emt 0:02:05]} Qf6 {[%emt 0:12:46]} 19. Bg1 {[%emt 0:08:22]} Qg5 {[%emt 0:09:38]} 20. f4 {[%emt 0:03:35]} Qxg4 {[%emt 0:11:06]} 21. Be2 {[%emt 0:02:55]} Nxd4 {[%emt 0:02:04]} 22. exd4 {[%emt 0:04:58]} Qh3+ {[%emt 0:00:11]} 23. Kf2 {[%emt 0:00:54]} Bf5 {[%emt 0:05:27]} 24. Qc1 {[%emt 0:03:10]} Be4 {[%emt 0:03:15]} 25. Ncxe4 {[%emt 0:03:08]} dxe4 {[%emt 0:00:02]} 26. Ke3 {[%emt 0:01:20]} Nf5+ {[%emt 0:00:14]} 27. Kd2 {[%emt 0:00:11]} Nxg3 {[%emt 0:01:44]} 28. hxg3 {[%emt 0:00:03]} Bxg3 {[%emt 0:00:37]} 29. Be3 {[%emt 0:00:11]} Qf5 {[%emt 0:00:30]} 30. Kc2 {[%emt 0:00:19]} Bh4 {[%emt 0:00:44]} 31. Kb1 {[%emt 0:00:12]} Bf6 {[%emt 0:00:19]} 32. Rg1 {[%emt 0:02:18]} Rad8 {[%emt 0:00:48]} 33. Bg4 {[%emt 0:01:08]} Qa5 {[%emt 0:00:30]} 34. f5 {[%emt 0:01:44]} Qb4 {[%emt 0:00:51]} 35. Qd2 {[%emt 0:00:56]} Qb5 {[%emt 0:00:27]} 36. Qh2 {[%emt 0:00:45]} c5 {[%emt 0:01:05]} 37. Rh1 {[%emt 0:00:57]} h5 {[%emt 0:00:57]} 38. fxg6 {[%emt 0:00:02]} fxg6 {[%emt 0:00:07]} 39. Bxh5 {[%emt 0:00:56]} Bxd4 {[%emt 0:01:18]} 40. Bxg6 {[%emt 0:00:27]} 1-0